[Event "Late-Titled-Tuesday-Blitz-June-25-2024"]
[Site "Chess.com"]
[Date "2024.06.25"]
[Round "11"]
[White "xasid81"]
[Black "Gabrielian_Artur"]
[Result "0-1"]
[WhiteElo "2575"]
[BlackElo "2732"]
[TimeControl "180+1"]
[EndTime "16:07:20 PDT"]
[Termination "Gabrielian_Artur won by resignation"]

1. e4 {[%clk 0:02:03.7]} 1... c5 {[%clk 0:02:59.1]} 2. Nf3 {[%clk 0:02:03]} 2...
d6 {[%clk 0:02:59.3]} 3. c3 {[%clk 0:02:02.5]} 3... Nf6 {[%clk 0:02:58.2]} 4.
Bd3 {[%clk 0:02:02.4]} 4... Nc6 {[%clk 0:02:56.4]} 5. Bc2 {[%clk 0:02:00.9]}
5... e5 {[%clk 0:02:55.6]} 6. h3 {[%clk 0:01:59.5]} 6... h6 {[%clk 0:02:54.9]}
7. d4 {[%clk 0:02:00]} 7... exd4 {[%clk 0:02:35.8]} 8. cxd4 {[%clk 0:02:00.9]}
8... cxd4 {[%clk 0:02:34.4]} 9. Nxd4 {[%clk 0:02:00.9]} 9... Be7 {[%clk
0:02:34.4]} 10. O-O {[%clk 0:02:00.2]} 10... O-O {[%clk 0:02:33.5]} 11. Nc3
{[%clk 0:02:00.2]} 11... Re8 {[%clk 0:02:30.9]} 12. Bf4 {[%clk 0:01:57.9]} 12...
Bf8 {[%clk 0:02:30.3]} 13. Ndb5 {[%clk 0:01:55.2]} 13... Ne5 {[%clk 0:02:29.9]}
14. Rc1 {[%clk 0:01:51.8]} 14... a6 {[%clk 0:02:30]} 15. Nd4 {[%clk 0:01:51.7]}
15... Bd7 {[%clk 0:02:25.9]} 16. Nf3 {[%clk 0:01:44.1]} 16... Rc8 {[%clk
0:02:22.2]} 17. Nxe5 {[%clk 0:01:39.3]} 17... dxe5 {[%clk 0:02:22.1]} 18. Be3
{[%clk 0:01:40]} 18... Be6 {[%clk 0:02:14.8]} 19. Qf3 {[%clk 0:01:34.8]} 19...
Bc5 {[%clk 0:02:12.3]} 20. Rfd1 {[%clk 0:01:30.2]} 20... Qe7 {[%clk 0:02:12.1]}
21. Bb3 {[%clk 0:01:19.2]} 21... Bxb3 {[%clk 0:02:10.4]} 22. axb3 {[%clk
0:01:20.1]} 22... Bxe3 {[%clk 0:02:07.3]} 23. Qxe3 {[%clk 0:01:21]} 23... Red8
{[%clk 0:02:02.7]} 24. Nd5 {[%clk 0:01:17.4]} 24... Nxd5 {[%clk 0:02:01.5]} 25.
Rxd5 {[%clk 0:01:04.8]} 25... Qg5 {[%clk 0:01:18.4]} 26. Qxg5 {[%clk 0:00:54.2]}
26... hxg5 {[%clk 0:01:18]} 27. Rxd8+ {[%clk 0:00:39.8]} 27... Rxd8 {[%clk
0:01:17.7]} 28. Rc7 {[%clk 0:00:40.5]} 28... Rd4 {[%clk 0:01:10]} 29. Rxb7
{[%clk 0:00:34.8]} 29... Rxe4 {[%clk 0:01:09.3]} 30. Rb6 {[%clk 0:00:34.6]}
30... Re1+ {[%clk 0:01:07.1]} 31. Kh2 {[%clk 0:00:34.6]} 31... Re2 {[%clk
0:01:07.5]} 32. f3 {[%clk 0:00:30.1]} 32... Rxb2 {[%clk 0:01:03.8]} 33. Rxa6
{[%clk 0:00:30.2]} 33... Rxb3 {[%clk 0:01:01.4]} 34. Kg3 {[%clk 0:00:27]} 34...
Rb2 {[%clk 0:00:58.8]} 35. Ra4 {[%clk 0:00:25]} 35... f6 {[%clk 0:00:55]} 36. h4
{[%clk 0:00:24.8]} 36... gxh4+ {[%clk 0:00:53.1]} 37. Rxh4 {[%clk 0:00:25.7]}
37... Kf7 {[%clk 0:00:52.4]} 38. Ra4 {[%clk 0:00:23.8]} 38... g5 {[%clk
0:00:52.1]} 39. Kh3 {[%clk 0:00:21.1]} 39... Rb3 {[%clk 0:00:36.1]} 40. Kg4
{[%clk 0:00:17.5]} 40... Kg6 {[%clk 0:00:36.3]} 41. Kg3 {[%clk 0:00:15.5]} 41...
Rd3 {[%clk 0:00:26.5]} 42. Rb4 {[%clk 0:00:15]} 42... Rd4 {[%clk 0:00:23.7]} 43.
Rb6 {[%clk 0:00:15]} 43... Rd2 {[%clk 0:00:22.5]} 44. Rb4 {[%clk 0:00:13.9]}
44... Re2 {[%clk 0:00:20.5]} 45. Ra4 {[%clk 0:00:11.7]} 45... f5 {[%clk
0:00:20.3]} 46. Kh3 {[%clk 0:00:10.3]} 46... e4 {[%clk 0:00:19.3]} 47. fxe4
{[%clk 0:00:08.6]} 47... Re3+ {[%clk 0:00:18.9]} 48. g3 {[%clk 0:00:07.1]} 48...
f4 {[%clk 0:00:19]} 49. Ra6+ {[%clk 0:00:04.4]} 49... Kh5 {[%clk 0:00:19.3]} 50.
Re6 {[%clk 0:00:04.2]} 50... Rxg3+ {[%clk 0:00:19.4]} 51. Kh2 {[%clk 0:00:04.9]}
51... Re3 {[%clk 0:00:20]} 52. e5 {[%clk 0:00:04.2]} 52... Kg4 {[%clk
0:00:20.4]} 53. Re8 {[%clk 0:00:04]} 53... Re2+ {[%clk 0:00:20.8]} 54. Kg1
{[%clk 0:00:04.4]} 54... f3 {[%clk 0:00:20.5]} 55. Kf1 {[%clk 0:00:03.9]} 55...
Kg3 {[%clk 0:00:20.2]} 56. e6 {[%clk 0:00:04.2]} 56... g4 {[%clk 0:00:20.7]} 57.
e7 {[%clk 0:00:04.1]} 57... Re6 {[%clk 0:00:20.7]} 0-1

[Event "Late-Titled-Tuesday-Blitz-June-25-2024"]
[Site "Chess.com"]
[Date "2024.06.25"]
[Round "11"]
[White "Crazy_girl99"]
[Black "gabduschew"]
[Result "1-0"]
[WhiteElo "2673"]
[BlackElo "2403"]
[TimeControl "180+1"]
[EndTime "16:07:29 PDT"]
[Termination "Crazy_girl99 won by checkmate"]

1. e4 {[%clk 0:02:59.8]} 1... e5 {[%clk 0:02:57.4]} 2. Nf3 {[%clk 0:03:00]} 2...
Nf6 {[%clk 0:02:57.1]} 3. Nc3 {[%clk 0:02:58.4]} 3... Nc6 {[%clk 0:02:49.3]} 4.
Bb5 {[%clk 0:02:56.9]} 4... Nd4 {[%clk 0:02:38]} 5. Ba4 {[%clk 0:02:51.2]} 5...
c6 {[%clk 0:02:29.5]} 6. Nxe5 {[%clk 0:02:40.5]} 6... d6 {[%clk 0:02:13.7]} 7.
Nd3 {[%clk 0:02:37.2]} 7... b5 {[%clk 0:02:06.5]} 8. Bb3 {[%clk 0:02:36.3]} 8...
a5 {[%clk 0:02:06.4]} 9. a3 {[%clk 0:02:22.5]} 9... Be7 {[%clk 0:01:42.9]} 10.
O-O {[%clk 0:02:20.1]} 10... O-O {[%clk 0:01:42.2]} 11. Ba2 {[%clk 0:02:18.4]}
11... Re8 {[%clk 0:01:39.5]} 12. Ne2 {[%clk 0:02:18]} 12... Qb6 {[%clk
0:01:35.7]} 13. Ng3 {[%clk 0:01:37.8]} 13... Bg4 {[%clk 0:01:15.2]} 14. Qe1
{[%clk 0:01:14]} 14... Nxc2 {[%clk 0:01:10.2]} 15. Qe3 {[%clk 0:01:12.8]} 15...
Nxe3 {[%clk 0:01:09.4]} 16. dxe3 {[%clk 0:01:13.3]} 16... Bf8 {[%clk 0:01:01.5]}
17. Bd2 {[%clk 0:01:08.3]} 17... Bd7 {[%clk 0:00:51.3]} 18. f3 {[%clk
0:01:07.8]} 18... g6 {[%clk 0:00:40.7]} 19. Rad1 {[%clk 0:01:06.4]} 19... Bg7
{[%clk 0:00:40.9]} 20. Ne2 {[%clk 0:01:03.8]} 20... c5 {[%clk 0:00:34.9]} 21.
Ndf4 {[%clk 0:01:02.6]} 21... b4 {[%clk 0:00:32.4]} 22. Nd5 {[%clk 0:00:56]}
22... Nxd5 {[%clk 0:00:30.7]} 23. Bxd5 {[%clk 0:00:56.9]} 23... Bc6 {[%clk
0:00:27.1]} 24. Bc1 {[%clk 0:00:51.1]} 24... Bb5 {[%clk 0:00:23.4]} 25. Rfe1
{[%clk 0:00:46.7]} 25... Qa6 {[%clk 0:00:21.3]} 26. Nf4 {[%clk 0:00:35.2]} 26...
Rab8 {[%clk 0:00:18.9]} 27. h4 {[%clk 0:00:31.9]} 27... h5 {[%clk 0:00:17.4]}
28. Nxg6 {[%clk 0:00:31.3]} 28... Bc6 {[%clk 0:00:15.4]} 29. Nf4 {[%clk
0:00:30.8]} 29... Bxd5 {[%clk 0:00:15.2]} 30. Rxd5 {[%clk 0:00:31.7]} 30... bxa3
{[%clk 0:00:14.1]} 31. bxa3 {[%clk 0:00:32]} 31... Rb3 {[%clk 0:00:13.8]} 32.
Rxh5 {[%clk 0:00:30.4]} 32... c4 {[%clk 0:00:12.9]} 33. Rg5 {[%clk 0:00:29.9]}
33... Kf8 {[%clk 0:00:10.9]} 34. Nh5 {[%clk 0:00:26.3]} 34... Bh8 {[%clk
0:00:10.1]} 35. Kh2 {[%clk 0:00:22.2]} 35... c3 {[%clk 0:00:10.4]} 36. Rd1
{[%clk 0:00:21.2]} 36... Qe2 {[%clk 0:00:08.3]} 37. Rxd6 {[%clk 0:00:18.2]}
37... Rb2 {[%clk 0:00:08.7]} 38. Rh6 {[%clk 0:00:17.8]} 38... Ke7 {[%clk
0:00:04.9]} 39. Nf4 {[%clk 0:00:13]} 39... Bf6 {[%clk 0:00:04.7]} 40. Nd5+
{[%clk 0:00:10.1]} 40... Kd6 {[%clk 0:00:03.6]} 41. Rxf6+ {[%clk 0:00:09.8]}
41... Kc5 {[%clk 0:00:03.9]} 42. Nf4+ {[%clk 0:00:09.5]} 42... Kc4 {[%clk
0:00:04]} 43. Nxe2 {[%clk 0:00:09.7]} 43... Rxe2 {[%clk 0:00:04.9]} 44. Rc6+
{[%clk 0:00:08.6]} 44... Kb3 {[%clk 0:00:05.3]} 45. Rgc5 {[%clk 0:00:07.6]}
45... c2 {[%clk 0:00:05]} 46. Rc3+ {[%clk 0:00:06.5]} 46... Ka2 {[%clk
0:00:04.8]} 47. Rxc2+ {[%clk 0:00:06.5]} 47... Rxc2 {[%clk 0:00:05.7]} 48. Rxc2+
{[%clk 0:00:06.8]} 48... Kb3 {[%clk 0:00:06.6]} 49. Rc7 {[%clk 0:00:06.7]} 49...
a4 {[%clk 0:00:05]} 50. e5 {[%clk 0:00:06.6]} 50... Rxe5 {[%clk 0:00:04.8]} 51.
e4 {[%clk 0:00:07.3]} 51... Rb5 {[%clk 0:00:03.3]} 52. g4 {[%clk 0:00:04.8]}
52... Rb8 {[%clk 0:00:02.1]} 53. h5 {[%clk 0:00:05.1]} 53... Rd8 {[%clk
0:00:02.7]} 54. h6 {[%clk 0:00:04.9]} 54... Rd1 {[%clk 0:00:03.6]} 55. h7 {[%clk
0:00:03]} 55... Rf1 {[%clk 0:00:03.2]} 56. h8=Q {[%clk 0:00:02.9]} 56... Rxf3
{[%clk 0:00:04.1]} 57. Qb2# {[%clk 0:00:02.4]} 1-0

[Event "Late-Titled-Tuesday-Blitz-June-25-2024"]
[Site "Chess.com"]
[Date "2024.06.25"]
[Round "11"]
[White "rionelG"]
[Black "sammartin99"]
[Result "1-0"]
[WhiteElo "2400"]
[BlackElo "2477"]
[TimeControl "180+1"]
[EndTime "16:07:34 PDT"]
[Termination "rionelG won on time"]

1. e4 {[%clk 0:02:46.1]} 1... c6 {[%clk 0:02:58.7]} 2. d4 {[%clk 0:02:45.7]}
2... d5 {[%clk 0:02:58.6]} 3. e5 {[%clk 0:02:46.4]} 3... Bf5 {[%clk 0:02:57.4]}
4. Nf3 {[%clk 0:02:46.8]} 4... e6 {[%clk 0:02:56.9]} 5. Be2 {[%clk 0:02:47.1]}
5... Nd7 {[%clk 0:02:55.5]} 6. O-O {[%clk 0:02:45.5]} 6... h6 {[%clk 0:02:54.7]}
7. Nbd2 {[%clk 0:02:44.3]} 7... Ne7 {[%clk 0:02:53.9]} 8. Nb3 {[%clk 0:02:43.3]}
8... Ng6 {[%clk 0:02:47.9]} 9. Be3 {[%clk 0:02:38.4]} 9... Be7 {[%clk
0:02:46.2]} 10. h3 {[%clk 0:02:30]} 10... O-O {[%clk 0:02:26.6]} 11. a4 {[%clk
0:02:27.4]} 11... Nh4 {[%clk 0:02:11.4]} 12. Nxh4 {[%clk 0:02:21.6]} 12... Bxh4
{[%clk 0:02:12.3]} 13. g4 {[%clk 0:02:19.8]} 13... Bh7 {[%clk 0:02:10.7]} 14. f4
{[%clk 0:02:20.1]} 14... f5 {[%clk 0:01:50.9]} 15. Bd3 {[%clk 0:02:13.7]} 15...
Nb6 {[%clk 0:01:02.7]} 16. a5 {[%clk 0:02:06.5]} 16... Nc4 {[%clk 0:01:02.3]}
17. Bxc4 {[%clk 0:02:07]} 17... dxc4 {[%clk 0:01:03.2]} 18. Nc5 {[%clk
0:02:07.3]} 18... Qe7 {[%clk 0:00:58.2]} 19. Qf3 {[%clk 0:01:39.5]} 19... fxg4
{[%clk 0:00:51.3]} 20. hxg4 {[%clk 0:01:38.9]} 20... Bxc2 {[%clk 0:00:51.1]} 21.
Rfc1 {[%clk 0:01:13.1]} 21... Bh7 {[%clk 0:00:39.2]} 22. Rxc4 {[%clk 0:01:09.5]}
22... g5 {[%clk 0:00:24.4]} 23. Ne4 {[%clk 0:00:22.8]} 23... gxf4 {[%clk
0:00:24.2]} 24. Bf2 {[%clk 0:00:20.2]} 24... Bg5 {[%clk 0:00:22]} 25. Kg2 {[%clk
0:00:15.9]} 25... Qg7 {[%clk 0:00:09.3]} 26. Nd6 {[%clk 0:00:14.9]} 26... Rad8
{[%clk 0:00:07.2]} 27. Rh1 {[%clk 0:00:14.2]} 27... Rxd6 {[%clk 0:00:04.6]} 28.
exd6 {[%clk 0:00:13.5]} 28... Qd7 {[%clk 0:00:04.4]} 29. Rb4 {[%clk 0:00:12.8]}
29... Rf7 {[%clk 0:00:02.9]} 30. a6 {[%clk 0:00:11.8]} 30... b6 {[%clk 0:00:03]}
31. Rc4 {[%clk 0:00:11.3]} 31... Qxd6 {[%clk 0:00:03.4]} 32. Rxc6 {[%clk
0:00:11.3]} 32... Qd5 {[%clk 0:00:01.9]} 33. Rc8+ {[%clk 0:00:10.4]} 33... Kg7
{[%clk 0:00:01.9]} 34. Re1 {[%clk 0:00:10]} 34... Bg6 {[%clk 0:00:01.7]} 35. Re5
{[%clk 0:00:08.6]} 35... Qd6 {[%clk 0:00:01.2]} 36. Qb3 {[%clk 0:00:05.9]} 36...
Qd7 {[%clk 0:00:01.4]} 37. Qxe6 {[%clk 0:00:05.7]} 37... Qxe6 {[%clk 0:00:01.2]}
38. Rxe6 {[%clk 0:00:06.6]} 38... Rd7 {[%clk 0:00:01.1]} 39. Rcc6 {[%clk
0:00:06.2]} 39... Bd3 {[%clk 0:00:01]} 40. d5 {[%clk 0:00:06]} 40... Bb5 {[%clk
0:00:01.1]} 41. Bd4+ {[%clk 0:00:05.6]} 41... Kg8 {[%clk 0:00:01.2]} 42. Rcd6
{[%clk 0:00:05.9]} 42... Rxd6 {[%clk 0:00:01.3]} 43. Rxd6 {[%clk 0:00:06.8]}
43... Bxa6 {[%clk 0:00:01.8]} 44. Rg6+ {[%clk 0:00:07]} 44... Kf7 {[%clk
0:00:02.2]} 45. Rg7+ {[%clk 0:00:07.6]} 45... Ke8 {[%clk 0:00:02.8]} 46. Rxa7
{[%clk 0:00:08.2]} 46... Bc4 {[%clk 0:00:03.2]} 47. d6 {[%clk 0:00:07.7]} 47...
Bd5+ {[%clk 0:00:03.3]} 48. Kf2 {[%clk 0:00:06.1]} 48... f3 {[%clk 0:00:04.2]}
49. d7+ {[%clk 0:00:05.8]} 49... Ke7 {[%clk 0:00:04.1]} 50. Bxb6 {[%clk
0:00:05.1]} 50... Bh4+ {[%clk 0:00:04.7]} 51. Ke3 {[%clk 0:00:05.1]} 51... Ke6
{[%clk 0:00:04.7]} 52. d8=Q {[%clk 0:00:04.4]} 52... Bxd8 {[%clk 0:00:05.4]} 53.
Bxd8 {[%clk 0:00:05.2]} 53... Ke5 {[%clk 0:00:05.5]} 54. Re7+ {[%clk 0:00:05.1]}
54... Kd6 {[%clk 0:00:05.6]} 55. Rh7 {[%clk 0:00:04.9]} 1-0

[Event "Late-Titled-Tuesday-Blitz-June-25-2024"]
[Site "Chess.com"]
[Date "2024.06.25"]
[Round "11"]
[White "KatakuriDono"]
[Black "dolynachess"]
[Result "0-1"]
[WhiteElo "2342"]
[BlackElo "2516"]
[TimeControl "180+1"]
[EndTime "16:07:37 PDT"]
[Termination "dolynachess won by checkmate"]

1. d4 {[%clk 0:03:00.9]} 1... Nf6 {[%clk 0:02:55.4]} 2. Nf3 {[%clk 0:03:00.4]}
2... g6 {[%clk 0:02:54.1]} 3. Nbd2 {[%clk 0:03:00.5]} 3... d5 {[%clk 0:02:53.2]}
4. e3 {[%clk 0:03:00.7]} 4... Bg7 {[%clk 0:02:52.5]} 5. b4 {[%clk 0:03:01.1]}
5... O-O {[%clk 0:02:53.3]} 6. c4 {[%clk 0:03:01.2]} 6... b6 {[%clk 0:02:37.6]}
7. Be2 {[%clk 0:03:00.4]} 7... c5 {[%clk 0:02:37.3]} 8. bxc5 {[%clk 0:02:56.8]}
8... bxc5 {[%clk 0:02:38.2]} 9. O-O {[%clk 0:02:54.1]} 9... Nc6 {[%clk
0:02:34.8]} 10. Qa4 {[%clk 0:02:42.4]} 10... Bd7 {[%clk 0:02:30.2]} 11. Qd1
{[%clk 0:02:33]} 11... cxd4 {[%clk 0:02:19.3]} 12. exd4 {[%clk 0:02:31]} 12...
Ne4 {[%clk 0:02:14.4]} 13. cxd5 {[%clk 0:02:26]} 13... Nc3 {[%clk 0:02:13.8]}
14. Qe1 {[%clk 0:02:21.3]} 14... Nxe2+ {[%clk 0:01:58.1]} 15. Qxe2 {[%clk
0:02:22.2]} 15... Nxd4 {[%clk 0:01:58.4]} 16. Nxd4 {[%clk 0:02:23.1]} 16... Bxd4
{[%clk 0:01:58.4]} 17. Rb1 {[%clk 0:02:22.7]} 17... a6 {[%clk 0:01:58.6]} 18.
Nb3 {[%clk 0:02:16]} 18... Bb5 {[%clk 0:01:54.8]} 19. Qf3 {[%clk 0:02:08]} 19...
Bxf1 {[%clk 0:01:32.5]} 20. Nxd4 {[%clk 0:02:07.6]} 20... Bb5 {[%clk 0:01:19.8]}
21. Bb2 {[%clk 0:01:54.8]} 21... Rb8 {[%clk 0:01:08.9]} 22. Nf5 {[%clk
0:01:53.6]} 22... f6 {[%clk 0:01:02.5]} 23. Nd4 {[%clk 0:01:43.4]} 23... Bd7
{[%clk 0:00:58.9]} 24. Qe2 {[%clk 0:01:37.6]} 24... Qb6 {[%clk 0:00:46.4]} 25.
h3 {[%clk 0:01:24.8]} 25... Rfe8 {[%clk 0:00:40.2]} 26. Nb3 {[%clk 0:01:19.7]}
26... Qd6 {[%clk 0:00:37]} 27. Rd1 {[%clk 0:01:17.5]} 27... Bb5 {[%clk
0:00:28.6]} 28. Qe3 {[%clk 0:01:11]} 28... Bc4 {[%clk 0:00:26.7]} 29. Bd4 {[%clk
0:00:53.5]} 29... Bxb3 {[%clk 0:00:20.6]} 30. axb3 {[%clk 0:00:50.1]} 30... Qxd5
{[%clk 0:00:19.5]} 31. Re1 {[%clk 0:00:43.3]} 31... Rxb3 {[%clk 0:00:18.1]} 32.
Qe6+ {[%clk 0:00:28.1]} 32... Qxe6 {[%clk 0:00:17.7]} 33. Rxe6 {[%clk 0:00:29]}
33... Kf7 {[%clk 0:00:18.1]} 34. Rxa6 {[%clk 0:00:28.5]} 34... Rd3 {[%clk
0:00:18.1]} 35. Bc5 {[%clk 0:00:28.3]} 35... Rd7 {[%clk 0:00:18.4]} 36. g3
{[%clk 0:00:26.7]} 36... Rc8 {[%clk 0:00:18.8]} 37. Be3 {[%clk 0:00:26.2]} 37...
Rcd8 {[%clk 0:00:18.8]} 38. Kg2 {[%clk 0:00:26.2]} 38... Rd6 {[%clk 0:00:19]}
39. Ra7 {[%clk 0:00:26.3]} 39... R8d7 {[%clk 0:00:19.6]} 40. Ra8 {[%clk
0:00:26.8]} 40... Re6 {[%clk 0:00:19.9]} 41. Rb8 {[%clk 0:00:25.8]} 41... Kg7
{[%clk 0:00:19.6]} 42. Ra8 {[%clk 0:00:26.2]} 42... h5 {[%clk 0:00:19.7]} 43. h4
{[%clk 0:00:25.7]} 43... Red6 {[%clk 0:00:19.7]} 44. Rb8 {[%clk 0:00:25.1]}
44... Rd5 {[%clk 0:00:19.9]} 45. Ra8 {[%clk 0:00:25]} 45... e5 {[%clk
0:00:20.2]} 46. Rb8 {[%clk 0:00:23.8]} 46... Kf7 {[%clk 0:00:19.8]} 47. Rh8
{[%clk 0:00:23.7]} 47... Kg7 {[%clk 0:00:17]} 48. Ra8 {[%clk 0:00:23.2]} 48...
Rd8 {[%clk 0:00:17.3]} 49. Ra7+ {[%clk 0:00:23.3]} 49... R5d7 {[%clk 0:00:17.8]}
50. Ra6 {[%clk 0:00:23.6]} 50... Kf7 {[%clk 0:00:18.7]} 51. Rb6 {[%clk
0:00:23.5]} 51... Rd6 {[%clk 0:00:18.9]} 52. Rb7+ {[%clk 0:00:23.7]} 52... R8d7
{[%clk 0:00:19.8]} 53. Rb8 {[%clk 0:00:24.2]} 53... Ke6 {[%clk 0:00:20.3]} 54.
Rg8 {[%clk 0:00:23]} 54... Kf5 {[%clk 0:00:20.5]} 55. Ra8 {[%clk 0:00:19.7]}
55... Rd3 {[%clk 0:00:20.9]} 56. Ra6 {[%clk 0:00:19.1]} 56... Rb7 {[%clk
0:00:20.5]} 57. Ra5 {[%clk 0:00:19]} 57... Rb2 {[%clk 0:00:19]} 58. Kg1 {[%clk
0:00:17.2]} 58... Rd1+ {[%clk 0:00:17.3]} 59. Kg2 {[%clk 0:00:17.1]} 59... Re1
{[%clk 0:00:17.9]} 60. Bh6 {[%clk 0:00:15.8]} 60... g5 {[%clk 0:00:14.8]} 61.
hxg5 {[%clk 0:00:15.5]} 61... fxg5 {[%clk 0:00:15.7]} 62. Bg7 {[%clk 0:00:14.4]}
62... Ree2 {[%clk 0:00:15.4]} 63. Kg1 {[%clk 0:00:11.4]} 63... Rxf2 {[%clk
0:00:15]} 64. Rxe5+ {[%clk 0:00:11.5]} 64... Kg6 {[%clk 0:00:15]} 65. Bh8 {[%clk
0:00:11.1]} 65... Rfe2 {[%clk 0:00:13.4]} 66. Ra5 {[%clk 0:00:08]} 66... Re1#
{[%clk 0:00:12.5]} 0-1

[Event "Late-Titled-Tuesday-Blitz-June-25-2024"]
[Site "Chess.com"]
[Date "2024.06.25"]
[Round "11"]
[White "K_A_S_T_O_R"]
[Black "FairChess_on_YouTube"]
[Result "1-0"]
[WhiteElo "2878"]
[BlackElo "3066"]
[TimeControl "180+1"]
[EndTime "16:07:47 PDT"]
[Termination "K_A_S_T_O_R won by resignation"]

1. e4 {[%clk 0:03:00.9]} 1... c5 {[%clk 0:02:58.4]} 2. Nf3 {[%clk 0:03:01.3]}
2... Nc6 {[%clk 0:02:58.6]} 3. d4 {[%clk 0:03:01.8]} 3... cxd4 {[%clk
0:02:58.6]} 4. Nxd4 {[%clk 0:03:02.4]} 4... e5 {[%clk 0:02:59.1]} 5. Nb3 {[%clk
0:03:02.1]} 5... d6 {[%clk 0:02:56.3]} 6. c4 {[%clk 0:02:57.3]} 6... Be6 {[%clk
0:02:48.9]} 7. Nc3 {[%clk 0:02:56.4]} 7... Rc8 {[%clk 0:02:48.6]} 8. Nd5 {[%clk
0:02:48.8]} 8... Nf6 {[%clk 0:02:16.9]} 9. Bg5 {[%clk 0:02:44.6]} 9... Be7
{[%clk 0:02:15.5]} 10. Nxe7 {[%clk 0:02:40.4]} 10... Nxe7 {[%clk 0:02:15.4]} 11.
Nd2 {[%clk 0:02:31]} 11... h6 {[%clk 0:02:11.1]} 12. Bh4 {[%clk 0:02:23.1]}
12... Qb6 {[%clk 0:01:52.8]} 13. Qb3 {[%clk 0:02:13.1]} 13... g5 {[%clk
0:01:50.8]} 14. Qxb6 {[%clk 0:02:08.6]} 14... axb6 {[%clk 0:01:50.4]} 15. Bg3
{[%clk 0:02:09.2]} 15... Nh5 {[%clk 0:01:45.1]} 16. f3 {[%clk 0:02:07.5]} 16...
Nxg3 {[%clk 0:01:44.7]} 17. hxg3 {[%clk 0:02:08.4]} 17... Nc6 {[%clk 0:01:36.3]}
18. Bd3 {[%clk 0:02:03]} 18... Ke7 {[%clk 0:01:19.9]} 19. g4 {[%clk 0:02:00.3]}
19... b5 {[%clk 0:01:10.6]} 20. cxb5 {[%clk 0:01:49.9]} 20... Nb4 {[%clk
0:01:10.7]} 21. Ke2 {[%clk 0:01:50.3]} 21... Nxa2 {[%clk 0:01:08.5]} 22. b3
{[%clk 0:01:41.3]} 22... Nc3+ {[%clk 0:01:03.4]} 23. Ke3 {[%clk 0:01:41.1]}
23... d5 {[%clk 0:01:03.8]} 24. Ra7 {[%clk 0:01:33.7]} 24... Rc7 {[%clk
0:01:01.6]} 25. b6 {[%clk 0:01:30.5]} 25... Rd7 {[%clk 0:01:01.6]} 26. Nb1
{[%clk 0:01:10]} 26... Rc8 {[%clk 0:00:56.6]} 27. Rc1 {[%clk 0:00:56.6]} 27...
dxe4 {[%clk 0:00:48.7]} 28. fxe4 {[%clk 0:00:47.4]} 28... Nxb1 {[%clk
0:00:16.3]} 29. Rxc8 {[%clk 0:00:42]} 29... Rxd3+ {[%clk 0:00:16.7]} 30. Kxd3
{[%clk 0:00:42.2]} 30... Bxc8 {[%clk 0:00:17.4]} 31. Kc2 {[%clk 0:00:42.5]}
31... Kd6 {[%clk 0:00:17.1]} 32. Kxb1 {[%clk 0:00:36.5]} 32... Kc6 {[%clk
0:00:17.5]} 33. Kc2 {[%clk 0:00:32.1]} 33... Bxg4 {[%clk 0:00:16.1]} 34. Ra8
{[%clk 0:00:30.3]} 34... Be6 {[%clk 0:00:07.9]} 35. Rh8 {[%clk 0:00:28.1]} 35...
Kxb6 {[%clk 0:00:05.7]} 36. Rxh6 {[%clk 0:00:28.1]} 36... Kc5 {[%clk 0:00:05.8]}
37. Kc3 {[%clk 0:00:28.6]} 37... b5 {[%clk 0:00:05.7]} 38. b4+ {[%clk
0:00:25.7]} 38... Kd6 {[%clk 0:00:06.3]} 39. Rh5 {[%clk 0:00:23]} 39... f6
{[%clk 0:00:05.4]} 40. Rh8 {[%clk 0:00:20.4]} 40... Bc4 {[%clk 0:00:04.8]} 41.
Rb8 {[%clk 0:00:18.1]} 41... Bf1 {[%clk 0:00:03.9]} 42. g3 {[%clk 0:00:18.5]}
42... Ke6 {[%clk 0:00:03.6]} 43. Rb6+ {[%clk 0:00:18.3]} 43... Kf7 {[%clk
0:00:03.6]} 44. Kd2 {[%clk 0:00:18.9]} 44... Kg6 {[%clk 0:00:03.8]} 45. Ke3
{[%clk 0:00:19.4]} 45... Bc4 {[%clk 0:00:02.5]} 46. Rc6 {[%clk 0:00:18.7]} 46...
Bf1 {[%clk 0:00:01.6]} 47. Rc1 {[%clk 0:00:18.6]} 47... Bh3 {[%clk 0:00:01.4]}
48. Kf2 {[%clk 0:00:16.2]} 48... Kf7 {[%clk 0:00:01.1]} 49. Rc5 {[%clk
0:00:16.6]} 49... Bd7 {[%clk 0:00:01.6]} 50. Rc7 {[%clk 0:00:13.5]} 50... Ke7
{[%clk 0:00:02.5]} 51. Rb7 {[%clk 0:00:13.8]} 51... Kd6 {[%clk 0:00:03.2]} 52.
Rb6+ {[%clk 0:00:14.2]} 52... Ke7 {[%clk 0:00:04.1]} 53. Kf3 {[%clk 0:00:13.8]}
53... Be8 {[%clk 0:00:03.9]} 54. Kg4 {[%clk 0:00:13.5]} 54... Bd7+ {[%clk
0:00:04.2]} 55. Kh5 {[%clk 0:00:13.6]} 55... Kf7 {[%clk 0:00:04.8]} 56. Rb7
{[%clk 0:00:12.1]} 56... Ke6 {[%clk 0:00:04.5]} 57. Kg6 {[%clk 0:00:12.3]} 57...
Be8+ {[%clk 0:00:04.5]} 58. Kg7 {[%clk 0:00:12.2]} 58... g4 {[%clk 0:00:03.2]}
59. Rb6+ {[%clk 0:00:11.7]} 59... Ke7 {[%clk 0:00:03.8]} 60. Rxf6 {[%clk
0:00:12]} 60... Bd7 {[%clk 0:00:04.3]} 61. Rb6 {[%clk 0:00:09.5]} 61... Be8
{[%clk 0:00:04]} 62. Rb7+ {[%clk 0:00:07.5]} 62... Kd6 {[%clk 0:00:04.1]} 63.
Kf6 {[%clk 0:00:07.4]} 63... Bc6 {[%clk 0:00:04.7]} 64. Rb6 {[%clk 0:00:07.7]}
1-0